[Event "XIV American Continental-ch 2019"]
[Site "Sao Paulo"]
[Date "2019.07.06"]
[Round "2.15"]
[White "Barbosa, Evandro Amorim"]
[Black "Labussiere, Victor"]
[Result "1-0"]
[ECO "B31"]
[WhiteElo "2506"]
[BlackElo "2194"]
[Annotator "RC"]
[PlyCount "99"]
[EventDate "2019.07.05"]
[EventType "swiss"]
[EventCountry "BRA"]
[SourceTitle "playchess.com"]
[Source "ChessBase"]
[SourceQuality "1"]
[TimeControl "40/5400+30:1800+30"]

1. e4 {[%emt 0:00:00]} c5 {[%emt 0:04:54]} 2. Nf3 {[%emt 0:00:00]} Nc6 {[%emt 0:01:35]} 3. Bb5 {[%emt 0:00:00]} g6 {[%emt 0:01:31]} 4. O-O {[%emt 0:00:02]} Bg7 {[%emt 0:00:03]} 5. Re1 {[%emt 0:00:08]} Nf6 {[%emt 0:02:49]} 6. e5 {[%emt 0:00:13]} Nd5 {[%emt 0:00:11]} 7. Nc3 {[%emt 0:00:10]} Nc7 {[%emt 0:01:09]} 8. Bxc6 {[%emt 0:00:08]} dxc6 {[%emt 0:00:03]} 9. Ne4 {[%emt 0:00:08]} Ne6 {[%emt 0:00:35]} 10. d3 {[%emt 0:00:23]} O-O {[%emt 0:01:33]} 11. Be3 {[%emt 0:00:07]} b6 {[%emt 0:02:41]} 12. Qd2 {[%emt 0:00:08]} f5 {[%emt 0:17:37]} 13. exf6 {[%emt 0:04:34]} exf6 {[%emt 0:00:15]} 14. Bh6 {[%emt 0:01:30]} Nc7 {[%emt 0:20:14]} 15. Bxg7 {[%emt 0:02:53]} Kxg7 {[%emt 0:00:56]} 16. Qf4 Be6 {[%emt 0:01:45]} 17. Re2 {[%emt 0:04:55]} Qd7 {[%emt 0:01:08]} 18. Rae1 {[%emt 0:00:46]} Rae8 {[%emt 0:02:10]} 19. h4 {[%emt 0:13:59]} h5 {[%emt 0:02:49]} 20. Nfd2 {[%emt 0:05:50]} Bd5 {[%emt 0:03:01]} 21. Qg3 {[%emt 0:09:33]} Re6 {[%emt 0:14:40]} 22. c4 {[%emt 0:08:05]} Bxe4 {[%emt 0:00:41]} 23. dxe4 {[%emt 0:00:07]} Qd6 {[%emt 0:04:27]} 24. f4 {[%emt 0:02:58]} f5 {[%emt 0:00:25]} 25. e5 {[%emt 0:06:58]} Qd4+ {[%emt 0:02:40]} 26. Kh2 {[%emt 0:00:30]} Re7 {[%emt 0:02:09]} 27. b3 {[%emt 0:13:38]} Ne6 {[%emt 0:00:52]} 28. Rf2 {[%emt 0:00:16]} Rd8 {[%emt 0:01:53]} 29. Nf1 {[%emt 0:00:20]} Red7 {[%emt 0:02:32]} 30. Qf3 {[%emt 0:02:29]} b5 {[%emt 0:02:11]} 31. Ne3 {[%emt 0:00:32]} b4 {[%emt 0:03:56]} 32. Qxc6 {[%emt 0:05:52]} Nxf4 {[%emt 0:00:41]} 33. Rd1 {[%emt 0:02:06]} Nd3 {[%emt 0:00:27]} 34. Qf6+ {[%emt 0:00:18]} Kh7 {[%emt 0:01:12]} 35. Rxd3 {[%emt 0:00:55]} Qxd3 {[%emt 0:00:13]} 36. Nxf5 {[%emt 0:00:47]} gxf5 {[%emt 0:01:19]} 37. Rxf5 {[%emt 0:00:07]} Rg7 {[%emt 0:00:23]} 38. Rxh5+ {[%emt 0:05:42]} Kg8 {[%emt 0:00:01]} 39. Qe6+ {[%emt 0:02:28]} Rf7 {[%emt 0:00:04]} 40. Qh6 {[%emt 0:02:36]} Rg7 {[%emt 0:01:03]} 41. Qh8+ {[%emt 0:30:52]} Kf7 {[%emt 0:30:04]} 42. e6+ {[%emt 0:00:10]} Kf6 {[%emt 0:01:25]} 43. Rh6+ {[%emt 0:00:15]} Kf5 {[%emt 0:00:08]} 44. Qxg7 {[%emt 0:00:32]} Qd6+ {[%emt 0:00:05]} 45. Qg3 {[%emt 0:02:51]} Qxg3+ {[%emt 0:00:08]} 46. Kxg3 {[%emt 0:00:05]} Rd3+ {[%emt 0:00:42]} 47. Kf2 {[%emt 0:00:14]} Rd2+ {[%emt 0:00:03]} 48. Kf3 {[%emt 0:00:09]} Rd3+ {[%emt 0:00:04]} 49. Ke2 {[%emt 0:00:05]} Rg3 {[%emt 0:00:02]} 50. Kf2 {[%emt 0:00:08]} 1-0

[Event "XIV American Continental-ch 2019"]
[Site "Sao Paulo"]
[Date "2019.07.06"]
[Round "2.16"]
[White "Gonzalez, Bolivar Ribeiro"]
[Black "Di Berardino, Diego Rafael"]
[Result "1/2-1/2"]
[ECO "C50"]
[WhiteElo "2193"]
[BlackElo "2506"]
[Annotator "RC"]
[PlyCount "122"]
[EventDate "2019.07.05"]
[EventType "swiss"]
[EventCountry "BRA"]
[SourceTitle "playchess.com"]
[Source "ChessBase"]
[SourceQuality "1"]
[TimeControl "40/5400+30:1800+30"]

1. e4 {[%emt 0:07:41]} e5 {[%emt 0:00:05]} 2. Nf3 {[%emt 0:03:35]} Nc6 {[%emt 0:00:08]} 3. Bc4 {[%emt 0:00:01]} Bc5 {[%emt 0:00:28]} 4. O-O {[%emt 0:00:41]} Nf6 {[%emt 0:00:37]} 5. Nc3 {[%emt 0:00:56]} d6 {[%emt 0:01:17]} 6. h3 h6 {[%emt 0:16:46]} 7. d3 {[%emt 0:01:14]} g5 {[%emt 0:04:01]} 8. Nh2 {[%emt 0:27:51]} Ne7 {[%emt 0:14:04]} 9. Be3 {[%emt 0:01:42]} Bb6 {[%emt 0:04:27]} 10. d4 {[%emt 0:01:05]} Bd7 {[%emt 0:00:09]} 11. a4 {[%emt 0:02:48]} Ng6 {[%emt 0:18:47]} 12. a5 {[%emt 0:01:09]} Bxd4 {[%emt 0:00:05]} 13. Bxd4 {[%emt 0:00:04]} exd4 {[%emt 0:05:25]} 14. Qxd4 {[%emt 0:05:06]} O-O {[%emt 0:00:51]} 15. Nd5 {[%emt 0:03:22]} Nxd5 {[%emt 0:05:50]} 16. Bxd5 {[%emt 0:12:28]} Rb8 {[%emt 0:00:13]} 17. b4 {[%emt 0:05:02]} a6 18. Rfe1 Qe7 {[%emt 0:03:23]} 19. Ra3 {[%emt 0:04:45]} Qe5 20. Nf3 {[%emt 0:00:12]} Qxd4 {[%emt 0:06:25]} 21. Nxd4 {[%emt 0:02:54]} Rfe8 {[%emt 0:03:37]} 22. Rae3 {[%emt 0:02:36]} Kg7 23. Nf3 Re7 {[%emt 0:03:05]} 24. Kh2 {[%emt 0:03:30]} Nf4 {[%emt 0:03:44]} 25. Bc4 {[%emt 0:04:54]} Rbe8 {[%emt 0:00:17]} 26. Bf1 {[%emt 0:03:15]} f5 {[%emt 0:04:57]} 27. g3 {[%emt 0:01:07]} Ng6 {[%emt 0:00:06]} 28. exf5 {[%emt 0:00:43]} Rxe3 {[%emt 0:00:21]} 29. Rxe3 {[%emt 0:00:10]} Rxe3 {[%emt 0:00:05]} 30. fxe3 {[%emt 0:00:03]} Bxf5 {[%emt 0:00:07]} 31. Nd4 {[%emt 0:00:16]} Bd7 {[%emt 0:00:04]} 32. c4 {[%emt 0:02:34]} Ne5 {[%emt 0:00:35]} 33. b5 Kf6 34. Kg1 c5 35. bxc6 Bxc6 36. Be2 Be4 37. Nb3 Ke7 38. c5 Nc6 39. Bc4 dxc5 40. Nxc5 Nxa5 41. Bxa6 bxa6 42. Nxe4 Nb7 43. Kf2 Ke6 44. Kf3 Kd5 45. Nd2 Nd6 46. Kg4 a5 47. Kh5 Ne4 48. Nb1 Nxg3+ 49. Kxh6 Ne4 50. Kg6 Ke5 51. Na3 a4 52. Nc4+ Ke6 53. Na3 Kd5 54. Kf5 Nf2 55. Kxg5 Nxh3+ 56. Kg4 Nf2+ 57. Kf3 Ne4 58. Ke2 Kc5 59. Kd3 Nf2+ 60. Kc3 Nd1+ 61. Kd2 Nf2 1/2-1/2

[Event "XIV American Continental-ch 2019"]
[Site "Sao Paulo"]
[Date "2019.07.06"]
[Round "2.17"]
[White "Salinas Herrera, Pablo"]
[Black "Curi, Gabriel"]
[Result "0-1"]
[ECO "A06"]
[WhiteElo "2498"]
[BlackElo "2185"]
[Annotator "RC"]
[PlyCount "98"]
[EventDate "2019.07.05"]
[EventType "swiss"]
[EventCountry "BRA"]
[SourceTitle "playchess.com"]
[Source "ChessBase"]
[SourceQuality "1"]
[TimeControl "40/5400+30:1800+30"]

1. Nf3 {[%emt 0:04:15]} d5 {[%emt 0:00:00]} 2. b3 {[%emt 0:00:03]} Bg4 {[%emt 0:00:00]} 3. Bb2 {[%emt 0:00:32]} Nd7 {[%emt 0:00:00]} 4. g3 {[%emt 0:02:44]} e6 {[%emt 0:02:09]} 5. Bg2 {[%emt 0:00:09]} Ngf6 {[%emt 0:00:12]} 6. O-O {[%emt 0:00:35]} c6 {[%emt 0:02:26]} 7. d3 {[%emt 0:00:14]} Bc5 {[%emt 0:00:36]} 8. c4 {[%emt 0:10:46]} O-O {[%emt 0:01:41]} 9. Nc3 {[%emt 0:00:31]} Qe7 {[%emt 0:05:30]} 10. a3 {[%emt 0:01:44]} a5 {[%emt 0:01:14]} 11. h3 {[%emt 0:03:17]} Bh5 {[%emt 0:01:59]} 12. cxd5 {[%emt 0:13:47]} cxd5 {[%emt 0:09:40]} 13. Nb5 {[%emt 0:05:32]} Qd8 {[%emt 0:04:28]} 14. Nfd4 {[%emt 0:09:11]} Qb6 {[%emt 0:12:43]} 15. a4 {[%emt 0:00:16]} h6 {[%emt 0:13:33]} 16. f4 {[%emt 0:02:29]} Rfe8 {[%emt 0:05:50]} 17. Kh1 {[%emt 0:04:44]} e5 {[%emt 0:03:59]} 18. fxe5 {[%emt 0:01:28]} Rxe5 {[%emt 0:00:22]} 19. g4 {[%emt 0:05:06]} Bxg4 {[%emt 0:06:48]} 20. hxg4 {[%emt 0:00:05]} Nxg4 {[%emt 0:00:13]} 21. e4 {[%emt 0:00:59]} Qg6 {[%emt 0:14:08]} 22. Rf3 {[%emt 0:04:18]} dxe4 {[%emt 0:06:45]} 23. dxe4 {[%emt 0:00:40]} Rh5+ {[%emt 0:03:02]} 24. Kg1 {[%emt 0:00:21]} Nde5 {[%emt 0:00:29]} 25. Rg3 {[%emt 0:00:22]} Rg5 {[%emt 0:02:29]} 26. Qe2 {[%emt 0:01:09]} h5 {[%emt 0:00:10]} 27. Rc1 {[%emt 0:01:39]} h4 {[%emt 0:00:27]} 28. Rh3 {[%emt 0:00:06]} b6 {[%emt 0:01:19]} 29. Rxc5 {[%emt 0:01:47]} bxc5 {[%emt 0:00:14]} 30. Nf5 {[%emt 0:00:04]} Qb6 {[%emt 0:01:42]} 31. Qd2 {[%emt 0:00:58]} Rh5 {[%emt 0:00:34]} 32. Qf4 {[%emt 0:02:17]} Re8 {[%emt 0:00:31]} 33. Nbd6 {[%emt 0:03:01]} Re6 {[%emt 0:00:31]} 34. Nxf7 {[%emt 0:05:23]} Kxf7 {[%emt 0:00:35]} 35. Nh6+ {[%emt 0:00:46]} Ke8 {[%emt 0:00:33]} 36. Nxg4 {[%emt 0:00:05]} c4+ {[%emt 0:00:21]} 37. Kh1 {[%emt 0:00:24]} Nd3 {[%emt 0:00:10]} 38. Qd2 {[%emt 0:01:06]} Rg6 {[%emt 0:00:26]} 39. Rxd3 {[%emt 0:10:15]} cxd3 {[%emt 0:00:35]} 40. Bf3 {[%emt 0:01:59]} Rhg5 {[%emt 0:00:59]} 41. Qc3 {[%emt 0:13:46]} Qc5 {[%emt 0:02:30]} 42. Qxc5 {[%emt 0:10:03]} Rxc5 {[%emt 0:00:07]} 43. Ne5 {[%emt 0:02:31]} Rg3 {[%emt 0:06:02]} 44. Bd1 {[%emt 0:01:11]} d2 {[%emt 0:03:04]} 45. Nc4 {[%emt 0:00:04]} Rcg5 {[%emt 0:03:38]} 46. Kh2 {[%emt 0:00:04]} Rg2+ {[%emt 0:00:37]} 47. Kh3 {[%emt 0:00:17]} Rg1 {[%emt 0:00:16]} 48. Kxh4 {[%emt 0:01:18]} Rxd1 {[%emt 0:00:47]} 49. Nxd2 {[%emt 0:00:13]} Rg2 {[%emt 0:00:59]} 0-1

[Event "XIV American Continental-ch 2019"]
[Site "Sao Paulo"]
[Date "2019.07.06"]
[Round "2.18"]
[White "Abrantes, Tiago Garrido"]
[Black "Cubas, Jose Fernando"]
[Result "0-1"]
[ECO "A40"]
[WhiteElo "2177"]
[BlackElo "2493"]
[Annotator "RC"]
[PlyCount "130"]
[EventDate "2019.07.05"]
[EventType "swiss"]
[EventCountry "BRA"]
[SourceTitle "playchess.com"]
[Source "ChessBase"]
[SourceQuality "1"]
[TimeControl "40/5400+30:1800+30"]

1. d4 {[%emt 0:03:44]} Nf6 {[%emt 0:00:00]} 2. c4 {[%emt 0:00:17]} e6 {[%emt 0:00:06]} 3. g3 {[%emt 0:00:33]} c5 {[%emt 0:00:38]} 4. Nf3 {[%emt 0:00:11]} cxd4 {[%emt 0:00:19]} 5. Nxd4 {[%emt 0:00:13]} d5 {[%emt 0:00:04]} 6. Bg2 {[%emt 0:00:47]} e5 {[%emt 0:00:04]} 7. Nf3 {[%emt 0:00:14]} d4 {[%emt 0:00:12]} 8. O-O {[%emt 0:00:16]} Nc6 {[%emt 0:00:15]} 9. e3 {[%emt 0:01:07]} Bc5 {[%emt 0:06:49]} 10. exd4 {[%emt 0:01:02]} exd4 {[%emt 0:01:42]} 11. Bg5 {[%emt 0:03:12]} Be6 {[%emt 0:15:16]} 12. Nbd2 {[%emt 0:00:41]} O-O {[%emt 0:08:36]} 13. a3 {[%emt 0:02:27]} Be7 {[%emt 0:04:52]} 14. Rc1 {[%emt 0:10:33]} h6 {[%emt 0:12:08]} 15. Bxf6 {[%emt 0:00:16]} Bxf6 {[%emt 0:00:04]} 16. Ne4 {[%emt 0:00:25]} Be7 {[%emt 0:00:35]} 17. Re1 {[%emt 0:03:21]} a5 {[%emt 0:02:05]} 18. Qa4 {[%emt 0:10:30]} Qb6 {[%emt 0:14:40]} 19. Qb5 {[%emt 0:05:29]} Qc7 {[%emt 0:02:09]} 20. Nc5 {[%emt 0:06:35]} Bc8 {[%emt 0:01:19]} 21. Nd3 {[%emt 0:02:19]} a4 {[%emt 0:01:40]} 22. Nfe5 {[%emt 0:04:40]} Ra6 {[%emt 0:18:07]} 23. Nxc6 {[%emt 0:14:50]} bxc6 {[%emt 0:00:05]} 24. Qe5 {[%emt 0:00:44]} Qxe5 {[%emt 0:00:40]} 25. Nxe5 {[%emt 0:00:28]} c5 {[%emt 0:04:24]} 26. Bd5 {[%emt 0:00:43]} Be6 {[%emt 0:01:36]} 27. Bxe6 {[%emt 0:06:24]} Rxe6 {[%emt 0:01:40]} 28. Nd3 {[%emt 0:00:17]} Bd6 {[%emt 0:00:28]} 29. Rxe6 {[%emt 0:01:09]} fxe6 {[%emt 0:00:01]} 30. Kg2 {[%emt 0:00:28]} g5 {[%emt 0:00:23]} 31. Re1 {[%emt 0:00:26]} Rf6 {[%emt 0:01:04]} 32. g4 {[%emt 0:01:49]} Kf7 {[%emt 0:00:44]} 33. Re4 {[%emt 0:01:42]} Ke7 {[%emt 0:00:11]} 34. f3 {[%emt 0:03:05]} Kd7 {[%emt 0:01:03]} 35. Re1 {[%emt 0:00:21]} Rf8 {[%emt 0:00:24]} 36. Rh1 {[%emt 0:01:05]} Rb8 {[%emt 0:00:28]} 37. Kf2 {[%emt 0:00:53]} h5 {[%emt 0:01:19]} 38. h3 {[%emt 0:03:39]} h4 {[%emt 0:01:18]} 39. Rd1 {[%emt 0:02:19]} Bg3+ {[%emt 0:00:16]} 40. Kg2 {[%emt 0:01:50]} Kd6 {[%emt 0:00:16]} 41. Rd2 {[%emt 0:30:52]} Bf4 {[%emt 0:04:32]} 42. Rd1 {[%emt 0:00:00]} Be3 {[%emt 0:01:03]} 43. Kf1 {[%emt 0:00:00]} e5 {[%emt 0:01:42]} 44. Ke2 {[%emt 0:00:00]} Re8 {[%emt 0:00:18]} 45. Rf1 {[%emt 0:00:00]} Re7 {[%emt 0:00:30]} 46. Kd1 {[%emt 0:00:00]} Rb7 {[%emt 0:02:29]} 47. Ke2 {[%emt 0:00:00]} Bf4 {[%emt 0:00:29]} 48. Kd1 {[%emt 0:00:00]} Bg3 {[%emt 0:01:12]} 49. Kd2 {[%emt 0:00:00]} Re7 {[%emt 0:02:58]} 50. Kd1 {[%emt 0:00:00]} Kc6 {[%emt 0:03:07]} 51. Kd2 {[%emt 0:00:00]} Kd6 {[%emt 0:01:22]} 52. Kd1 {[%emt 0:00:00]} Re8 {[%emt 0:00:04]} 53. Kd2 {[%emt 0:00:00]} Bf4+ {[%emt 0:01:11]} 54. Kd1 {[%emt 0:00:00]} e4 {[%emt 0:00:35]} 55. fxe4 {[%emt 0:00:00]} Rxe4 {[%emt 0:00:15]} 56. Rf3 {[%emt 0:00:00]} Re8 {[%emt 0:02:44]} 57. Nxf4 {[%emt 0:03:03]} Rf8 {[%emt 0:03:46]} 58. b3 {[%emt 0:00:22]} gxf4 {[%emt 0:02:13]} 59. bxa4 {[%emt 0:01:02]} Ke5 {[%emt 0:00:05]} 60. a5 {[%emt 0:07:21]} Ke4 {[%emt 0:02:07]} 61. Rb3 {[%emt 0:03:33]} f3 {[%emt 0:00:20]} 62. Ke1 {[%emt 0:00:18]} d3 {[%emt 0:01:29]} 63. Kf2 {[%emt 0:01:54]} d2 {[%emt 0:00:15]} 64. Re3+ {[%emt 0:00:39]} Kd4 {[%emt 0:00:24]} 65. Re7 {[%emt 0:00:13]} Rd8 {[%emt 0:00:13]} 0-1

[Event "XIV American Continental-ch 2019"]
[Site "Sao Paulo"]
[Date "2019.07.06"]
[Round "2.19"]
[White "Hungaski, Robert"]
[Black "Aguilar, Luis Miguel"]
[Result "1-0"]
[ECO "A55"]
[WhiteElo "2488"]
[BlackElo "2175"]
[Annotator "RC"]
[PlyCount "81"]
[EventDate "2019.07.05"]
[EventType "swiss"]
[EventCountry "BRA"]
[SourceTitle "playchess.com"]
[Source "ChessBase"]
[SourceQuality "1"]
[TimeControl "40/5400+30:1800+30"]

1. d4 {[%emt 0:13:59]} d6 {[%emt 0:00:20]} 2. Nf3 {[%emt 0:00:47]} Nf6 {[%emt 0:04:01]} 3. c4 {[%emt 0:00:07]} Nbd7 {[%emt 0:00:54]} 4. Nc3 {[%emt 0:01:01]} e5 {[%emt 0:00:20]} 5. e4 {[%emt 0:00:10]} Be7 {[%emt 0:00:46]} 6. Be2 {[%emt 0:00:21]} h6 {[%emt 0:00:59]} 7. O-O {[%emt 0:03:51]} g5 {[%emt 0:04:27]} 8. g3 {[%emt 0:15:27]} c6 9. b3 {[%emt 0:03:22]} Qc7 {[%emt 0:07:19]} 10. Bb2 {[%emt 0:00:06]} Nf8 {[%emt 0:01:31]} 11. dxe5 {[%emt 0:03:08]} dxe5 12. Nxe5 {[%emt 0:00:52]} Bh3 {[%emt 0:38:14]} 13. Re1 {[%emt 0:06:36]} Rd8 {[%emt 0:13:51]} 14. Nd5 {[%emt 0:01:43]} cxd5 {[%emt 0:01:13]} 15. exd5 {[%emt 0:00:08]} N8h7 {[%emt 0:04:12]} 16. Bd3 {[%emt 0:09:30]} O-O {[%emt 0:09:23]} 17. Qf3 {[%emt 0:22:42]} Bc8 {[%emt 0:02:24]} 18. h3 {[%emt 0:10:08]} Bd6 {[%emt 0:05:59]} 19. Ng4 {[%emt 0:00:50]} Nxg4 {[%emt 0:00:50]} 20. hxg4 {[%emt 0:00:08]} h5 {[%emt 0:00:50]} 21. Bxh7+ {[%emt 0:02:32]} Kxh7 {[%emt 0:00:08]} 22. Qf6 {[%emt 0:00:27]} Rg8 {[%emt 0:00:45]} 23. gxh5 {[%emt 0:00:26]} Bf8 {[%emt 0:02:04]} 24. Be5 {[%emt 0:01:11]} Bg7 {[%emt 0:00:57]} 25. Qxg7+ {[%emt 0:00:09]} Rxg7 {[%emt 0:00:07]} 26. Bxc7 {[%emt 0:00:05]} Rd7 {[%emt 0:00:53]} 27. Be5 {[%emt 0:02:04]} Rg8 {[%emt 0:00:12]} 28. Bf6 {[%emt 0:01:02]} Rd6 {[%emt 0:00:47]} 29. Bd4 {[%emt 0:00:34]} Kh6 {[%emt 0:00:32]} 30. Bxa7 {[%emt 0:00:47]} Kxh5 {[%emt 0:00:31]} 31. Kg2 {[%emt 0:00:17]} b6 {[%emt 0:00:29]} 32. Re7 {[%emt 0:00:22]} Kg6 {[%emt 0:00:22]} 33. Bb8 {[%emt 0:00:43]} Rf6 {[%emt 0:00:30]} 34. Be5 {[%emt 0:00:19]} Bh3+ {[%emt 0:00:39]} 35. Kxh3 {[%emt 0:00:42]} Rxf2 {[%emt 0:00:09]} 36. g4 {[%emt 0:00:24]} f6 {[%emt 0:00:41]} 37. Kg3 {[%emt 0:00:24]} Rd2 {[%emt 0:00:40]} 38. Re6 {[%emt 0:00:28]} Rf8 {[%emt 0:00:26]} 39. Rf1 {[%emt 0:00:10]} Rd3+ {[%emt 0:00:08]} 40. Rf3 {[%emt 0:00:32]} Rxf3+ {[%emt 0:00:19]} 41. Kxf3 {[%emt 0:30:06]} 1-0

[Event "XIV American Continental-ch 2019"]
[Site "Sao Paulo"]
[Date "2019.07.06"]
[Round "2.20"]
[White "Alboredo, Julia"]
[Black "Hambleton, Aman"]
[Result "0-1"]
[ECO "C16"]
[WhiteElo "2175"]
[BlackElo "2487"]
[Annotator "RC"]
[PlyCount "110"]
[EventDate "2019.07.05"]
[EventType "swiss"]
[EventCountry "BRA"]
[SourceTitle "playchess.com"]
[Source "ChessBase"]
[SourceQuality "1"]
[TimeControl "40/5400+30:1800+30"]

1. e4 {[%emt 0:00:00]} e6 {[%emt 0:00:37]} 2. d4 {[%emt 0:00:10]} d5 {[%emt 0:00:12]} 3. Nc3 {[%emt 0:00:46]} Bb4 {[%emt 0:00:11]} 4. e5 {[%emt 0:00:17]} Ne7 {[%emt 0:00:34]} 5. a3 {[%emt 0:00:32]} Bxc3+ {[%emt 0:00:10]} 6. bxc3 {[%emt 0:00:06]} b6 {[%emt 0:00:15]} 7. Qg4 {[%emt 0:02:39]} Ng6 {[%emt 0:00:21]} 8. h4 {[%emt 0:02:40]} h5 {[%emt 0:00:22]} 9. Qg3 {[%emt 0:00:11]} Ba6 {[%emt 0:02:10]} 10. Bxa6 {[%emt 0:03:26]} Nxa6 {[%emt 0:00:10]} 11. Qd3 {[%emt 0:13:22]} Nb8 {[%emt 0:02:27]} 12. Nf3 {[%emt 0:00:49]} Nc6 {[%emt 0:02:05]} 13. Bg5 {[%emt 0:06:58]} Qd7 {[%emt 0:00:48]} 14. O-O {[%emt 0:04:52]} Na5 {[%emt 0:11:16]} 15. Nd2 {[%emt 0:02:49]} Ne7 {[%emt 0:01:10]} 16. a4 {[%emt 0:09:40]} Nf5 {[%emt 0:03:16]} 17. Rfd1 {[%emt 0:10:02]} O-O {[%emt 0:11:54]} 18. g3 {[%emt 0:08:41]} f6 {[%emt 0:12:38]} 19. Bf4 {[%emt 0:04:13]} Rad8 {[%emt 0:02:52]} 20. Re1 {[%emt 0:00:59]} Qf7 {[%emt 0:06:21]} 21. Re2 {[%emt 0:03:46]} fxe5 {[%emt 0:14:18]} 22. Bxe5 {[%emt 0:00:32]} Nc6 {[%emt 0:00:14]} 23. Rf1 {[%emt 0:05:17]} Rde8 {[%emt 0:12:14]} 24. Nf3 {[%emt 0:04:46]} Nd8 {[%emt 0:04:10]} 25. Ng5 {[%emt 0:03:08]} Qd7 {[%emt 0:00:52]} 26. c4 {[%emt 0:03:58]} Nf7 {[%emt 0:03:56]} 27. Nxf7 {[%emt 0:02:31]} Rxf7 {[%emt 0:02:20]} 28. a5 {[%emt 0:01:18]} dxc4 {[%emt 0:03:11]} 29. Qxc4 {[%emt 0:00:13]} Qd5 {[%emt 0:00:07]} 30. Qxd5 {[%emt 0:01:56]} exd5 {[%emt 0:00:03]} 31. Ree1 {[%emt 0:00:31]} Re6 {[%emt 0:00:49]} 32. Ra1 {[%emt 0:02:09]} Rc6 {[%emt 0:00:22]} 33. Ra2 {[%emt 0:00:12]} Rc4 {[%emt 0:01:00]} 34. Rd1 {[%emt 0:00:40]} Ne7 {[%emt 0:02:26]} 35. axb6 {[%emt 0:00:54]} axb6 {[%emt 0:00:07]} 36. Rd2 {[%emt 0:00:18]} Rf3 {[%emt 0:01:03]} 37. Ra7 {[%emt 0:02:35]} Rfc3 {[%emt 0:00:46]} 38. Re2 {[%emt 0:00:21]} Nc6 {[%emt 0:00:36]} 39. Ra8+ {[%emt 0:00:24]} Kf7 {[%emt 0:00:30]} 40. Rc8 {[%emt 0:00:30]} Nxd4 {[%emt 0:00:30]} 41. Bxd4 {[%emt 0:30:19]} Rxd4 {[%emt 0:30:03]} 42. Rce8 {[%emt 0:00:43]} Re4 {[%emt 0:00:23]} 43. R8xe4 {[%emt 0:00:37]} dxe4 {[%emt 0:00:03]} 44. Kf1 {[%emt 0:00:00]} Kf6 {[%emt 0:00:00]} 45. Ke1 {[%emt 0:00:00]} Ke5 {[%emt 0:00:00]} 46. Rd2 {[%emt 0:00:00]} e3 {[%emt 0:00:00]} 47. fxe3 {[%emt 0:00:00]} Rxe3+ {[%emt 0:00:00]} 48. Kf2 {[%emt 0:00:00]} Rc3 {[%emt 0:00:00]} 49. Re2+ {[%emt 0:00:00]} Kf5 {[%emt 0:00:00]} 50. Rd2 {[%emt 0:00:00]} Kg4 {[%emt 0:00:00]} 51. Rd4+ {[%emt 0:00:00]} Kh3 {[%emt 0:00:00]} 52. Rd7 {[%emt 0:00:00]} Rxc2+ {[%emt 0:00:00]} 53. Kf3 {[%emt 0:00:00]} Rc3+ {[%emt 0:00:00]} 54. Kf4 {[%emt 0:00:00]} Rxg3 {[%emt 0:00:00]} 55. Rxc7 {[%emt 0:00:00]} Kxh4 {[%emt 0:00:00]} 0-1

[Event "XIV American Continental-ch 2019"]
[Site "Sao Paulo"]
[Date "2019.07.06"]
[Round "2.21"]
[White "Vazquez, Guillermo"]
[Black "Fiaes, Mario Henrique Andra"]
[Result "1-0"]
[ECO "B32"]
[WhiteElo "2483"]
[BlackElo "2173"]
[Annotator "RC"]
[PlyCount "55"]
[EventDate "2019.07.05"]
[EventType "swiss"]
[EventCountry "BRA"]
[SourceTitle "playchess.com"]
[Source "ChessBase"]
[SourceQuality "1"]
[TimeControl "40/5400+30:1800+30"]

1. e4 {[%emt 0:00:00]} c5 {[%emt 0:09:57]} 2. Nf3 {[%emt 0:00:00]} Nc6 {[%emt 0:01:55]} 3. d4 {[%emt 0:03:10]} cxd4 {[%emt 0:02:13]} 4. Nxd4 {[%emt 0:00:10]} Qb6 {[%emt 0:01:22]} 5. Nb3 {[%emt 0:03:21]} Nf6 {[%emt 0:00:57]} 6. Bd3 {[%emt 0:03:28]} e6 {[%emt 0:01:58]} 7. O-O {[%emt 0:00:46]} Be7 {[%emt 0:04:08]} 8. c4 {[%emt 0:01:19]} d6 {[%emt 0:01:37]} 9. Nc3 a6 {[%emt 0:02:14]} 10. Be3 {[%emt 0:02:48]} Qc7 {[%emt 0:01:06]} 11. Rc1 {[%emt 0:01:24]} Ne5 {[%emt 0:00:14]} 12. Be2 {[%emt 0:08:29]} O-O {[%emt 0:01:14]} 13. f4 {[%emt 0:06:14]} Ned7 {[%emt 0:00:09]} 14. g4 {[%emt 0:07:06]} b6 {[%emt 0:07:08]} 15. g5 {[%emt 0:00:28]} Ne8 16. Nd4 Bb7 {[%emt 0:07:05]} 17. Bf3 {[%emt 0:09:27]} g6 {[%emt 0:02:40]} 18. f5 {[%emt 0:06:46]} exf5 {[%emt 0:18:08]} 19. exf5 {[%emt 0:01:05]} Ne5 {[%emt 0:07:30]} 20. Nd5 {[%emt 0:06:25]} Nxf3+ {[%emt 0:06:55]} 21. Qxf3 {[%emt 0:00:47]} Bxd5 {[%emt 0:01:24]} 22. cxd5 {[%emt 0:03:02]} Qd7 {[%emt 0:01:44]} 23. f6 {[%emt 0:02:00]} Bd8 {[%emt 0:02:01]} 24. Nc6 {[%emt 0:00:43]} b5 {[%emt 0:05:05]} 25. Rfe1 {[%emt 0:00:09]} h5 {[%emt 0:03:39]} 26. Bd4 {[%emt 0:04:39]} a5 {[%emt 0:04:56]} 27. Re7 {[%emt 0:00:22]} Qc8 {[%emt 0:04:28]} 28. Rxe8 {[%emt 0:00:58]} 1-0

[Event "XIV American Continental-ch 2019"]
[Site "Sao Paulo"]
[Date "2019.07.06"]
[Round "2.22"]
[White "Bueno, Alfeu Junior Varela"]
[Black "Santiago, Yago De Moura"]
[Result "0-1"]
[ECO "C03"]
[WhiteElo "2169"]
[BlackElo "2473"]
[Annotator "RC"]
[PlyCount "70"]
[EventDate "2019.07.05"]
[EventType "swiss"]
[EventCountry "BRA"]
[SourceTitle "playchess.com"]
[Source "ChessBase"]
[SourceQuality "1"]
[TimeControl "40/5400+30:1800+30"]

1. e4 {[%emt 0:03:04]} e6 {[%emt 0:00:00]} 2. d4 {[%emt 0:00:18]} d5 {[%emt 0:00:00]} 3. Nd2 {[%emt 0:00:29]} h6 {[%emt 0:00:09]} 4. Bd3 {[%emt 0:07:37]} c5 {[%emt 0:01:05]} 5. dxc5 {[%emt 0:00:34]} Bxc5 {[%emt 0:00:18]} 6. Ngf3 {[%emt 0:00:20]} Ne7 {[%emt 0:03:55]} 7. Qe2 {[%emt 0:02:27]} Nbc6 {[%emt 0:00:38]} 8. Nb3 {[%emt 0:02:14]} Bd6 {[%emt 0:01:51]} 9. c3 {[%emt 0:05:42]} dxe4 10. Bxe4 {[%emt 0:01:18]} Qc7 {[%emt 0:06:35]} 11. Nbd4 {[%emt 0:12:18]} Nxd4 {[%emt 0:02:41]} 12. Nxd4 {[%emt 0:00:06]} a6 {[%emt 0:00:24]} 13. g3 {[%emt 0:07:37]} e5 {[%emt 0:01:56]} 14. Nc2 {[%emt 0:08:57]} f5 {[%emt 0:03:22]} 15. Bg2 {[%emt 0:01:26]} Be6 {[%emt 0:01:00]} 16. Be3 {[%emt 0:09:51]} O-O {[%emt 0:07:06]} 17. f4 {[%emt 0:08:56]} Bc4 {[%emt 0:01:54]} 18. Qf2 {[%emt 0:00:33]} exf4 {[%emt 0:10:04]} 19. Bxf4 {[%emt 0:02:41]} Bxf4 {[%emt 0:03:38]} 20. Qxf4 {[%emt 0:02:06]} Qxf4 {[%emt 0:00:17]} 21. gxf4 {[%emt 0:00:04]} Ng6 {[%emt 0:00:14]} 22. Ne3 {[%emt 0:03:18]} Nxf4 {[%emt 0:01:18]} 23. Bxb7 {[%emt 0:02:24]} Rae8 {[%emt 0:00:18]} 24. Kf2 {[%emt 0:02:15]} Nd3+ {[%emt 0:01:35]} 25. Kf3 {[%emt 0:00:07]} Bf7 {[%emt 0:00:22]} 26. Bd5 {[%emt 0:10:31]} Ne5+ {[%emt 0:00:52]} 27. Kg2 {[%emt 0:01:28]} f4 {[%emt 0:01:45]} 28. Bxf7+ {[%emt 0:00:16]} Rxf7 {[%emt 0:00:07]} 29. Nd1 {[%emt 0:02:32]} Nd3 {[%emt 0:01:15]} 30. Kf3 {[%emt 0:00:11]} g5 {[%emt 0:00:53]} 31. a4 {[%emt 0:01:26]} h5 {[%emt 0:00:26]} 32. h3 {[%emt 0:00:06]} g4+ {[%emt 0:00:24]} 33. hxg4 {[%emt 0:00:23]} hxg4+ {[%emt 0:00:05]} 34. Kxg4 {[%emt 0:00:37]} Rg7+ {[%emt 0:00:07]} 35. Kf5 {[%emt 0:00:26]} Kf7 {[%emt 0:00:19]} 0-1